[Event "FIDE World Senior-50 CC 2023"]
[Site "Terrasini"]
[Date "2023.11.01"]
[Round "7.3"]
[White "Stefansson, Hannes"]
[Black "Vinter-Schou, Uffe"]
[Result "1-0"]
[ECO "B48"]
[WhiteElo "2529"]
[BlackElo "2345"]
[Annotator "RC"]
[PlyCount "105"]
[EventDate "2023.10.22"]
[EventType "swiss"]
[EventCountry "ITA"]
[SourceTitle "playchess.com"]
[Source "ChessBase"]
[SourceQuality "1"]
[TimeControl "40/5400+30:1800+30"]

1. e4 {[%emt 0:00:26]} c5 {[%emt 0:00:24]} 2. Nf3 {[%emt 0:00:19]} e6 {[%emt 0:00:16]} 3. d4 {[%emt 0:00:26]} cxd4 {[%emt 0:00:10]} 4. Nxd4 {[%emt 0:00:22]} Nc6 {[%emt 0:00:57]} 5. Nc3 {[%emt 0:00:24]} Qc7 {[%emt 0:00:14]} 6. Be3 {[%emt 0:00:37]} a6 {[%emt 0:00:18]} 7. a3 {[%emt 0:01:31]} b5 {[%emt 0:02:35]} 8. Nxc6 {[%emt 0:00:39]} Qxc6 {[%emt 0:00:20]} 9. Bd3 {[%emt 0:03:12]} Bb7 {[%emt 0:01:28]} 10. O-O {[%emt 0:07:59]} Nf6 {[%emt 0:02:40]} 11. Qf3 {[%emt 0:04:55]} h5 {[%emt 0:26:09]} 12. Bf4 {[%emt 0:04:09]} Be7 {[%emt 0:12:46]} 13. Rfe1 {[%emt 0:04:06]} h4 {[%emt 0:03:09]} 14. h3 {[%emt 0:01:23]} Rh5 {[%emt 0:04:10]} 15. Bf1 {[%emt 0:07:32]} Rc8 {[%emt 0:03:09]} 16. Rad1 {[%emt 0:02:14]} g6 {[%emt 0:02:55]} 17. Bd3 {[%emt 0:07:10]} Kf8 {[%emt 0:01:46]} 18. Qe3 {[%emt 0:01:54]} Bc5 {[%emt 0:11:15]} 19. Qd2 {[%emt 0:03:35]} Kg7 {[%emt 0:04:06]} 20. Be2 {[%emt 0:02:15]} Rhh8 {[%emt 0:07:51]} 21. Bf3 {[%emt 0:00:58]} Qb6 {[%emt 0:04:16]} 22. Be5 {[%emt 0:01:10]} Bc6 {[%emt 0:01:22]} 23. Bxf6+ {[%emt 0:06:04]} Kxf6 {[%emt 0:00:02]} 24. e5+ {[%emt 0:00:14]} Kg7 {[%emt 0:01:23]} 25. Bxc6 {[%emt 0:00:17]} dxc6 {[%emt 0:01:35]} 26. Qf4 {[%emt 0:03:42]} Rh5 {[%emt 0:00:46]} 27. Qf6+ {[%emt 0:02:04]} Kg8 {[%emt 0:00:05]} 28. Ne4 {[%emt 0:00:17]} Rf5 {[%emt 0:01:39]} 29. Qxh4 {[%emt 0:00:11]} Kg7 {[%emt 0:00:14]} 30. g4 {[%emt 0:10:46]} Rf3 {[%emt 0:01:18]} 31. Kg2 {[%emt 0:01:11]} Rh8 {[%emt 0:00:54]} 32. Qxh8+ {[%emt 0:00:08]} Kxh8 {[%emt 0:00:01]} 33. Kxf3 {[%emt 0:00:10]} Bd4 {[%emt 0:01:13]} 34. c3 {[%emt 0:06:07]} Bxe5 {[%emt 0:02:42]} 35. Ng5 {[%emt 0:00:26]} Bf6 {[%emt 0:01:11]} 36. Nxf7+ {[%emt 0:00:07]} Kg8 {[%emt 0:00:46]} 37. Nd6 {[%emt 0:00:17]} Bh4 {[%emt 0:01:10]} 38. Ne4 {[%emt 0:01:19]} Qc7 {[%emt 0:00:17]} 39. g5 {[%emt 0:00:41]} Qh2 {[%emt 0:01:00]} 40. Rg1 {[%emt 0:10:30]} Qxh3+ {[%emt 0:01:00]} 41. Ke2 {[%emt 0:30:06]} e5 {[%emt 0:05:36]} 42. Rd3 {[%emt 0:00:00]} Qf5 {[%emt 0:01:14]} 43. Re3 {[%emt 0:00:00]} Qf4 {[%emt 0:00:46]} 44. Rg2 {[%emt 0:00:00]} Kg7 {[%emt 0:00:54]} 45. f3 {[%emt 0:00:00]} Qf7 {[%emt 0:00:43]} 46. Rg4 {[%emt 0:00:00]} Qa2 {[%emt 0:02:09]} 47. Rxh4 {[%emt 0:00:00]} Qxb2+ {[%emt 0:00:03]} 48. Nd2 {[%emt 0:00:00]} Qxa3 {[%emt 0:00:19]} 49. Rhe4 {[%emt 0:00:00]} a5 {[%emt 0:00:10]} 50. Rxe5 {[%emt 0:00:00]} a4 {[%emt 0:00:10]} 51. f4 {[%emt 0:00:00]} Qd6 {[%emt 0:01:10]} 52. Ne4 {[%emt 0:00:00]} Qd7 {[%emt 0:00:52]} 53. Nf6 {[%emt 0:00:00]} 1-0

[Event "FIDE World Senior-50 CC 2023"]
[Site "Terrasini"]
[Date "2023.11.01"]
[Round "7.4"]
[White "Sturua, Zurab"]
[Black "Novik, Maxim"]
[Result "0-1"]
[ECO "A29"]
[WhiteElo "2514"]
[BlackElo "2375"]
[Annotator "ChessBase"]
[PlyCount "99"]
[EventDate "2023.10.22"]
[EventType "swiss"]
[EventCountry "ITA"]
[SourceTitle "playchess.com"]
[Source "ChessBase"]
[SourceQuality "1"]
[TimeControl "40/5400+30:1800+30"]

1. c4 {[%emt 0:00:17]} e5 {[%emt 0:01:58]} 2. Nc3 {[%emt 0:00:50]} Nf6 {[%emt 0:00:10]} 3. Nf3 {[%emt 0:00:41]} Nc6 {[%emt 0:01:08]} 4. g3 {[%emt 0:04:03]} d5 {[%emt 0:01:19]} 5. cxd5 {[%emt 0:00:07]} Nxd5 {[%emt 0:00:03]} 6. Bg2 {[%emt 0:00:08]} Nb6 {[%emt 0:01:14]} 7. O-O {[%emt 0:00:50]} Be7 {[%emt 0:00:07]} 8. d3 {[%emt 0:00:59]} O-O {[%emt 0:00:08]} 9. a3 {[%emt 0:01:01]} Re8 {[%emt 0:01:00]} 10. b4 {[%emt 0:02:30]} a5 {[%emt 0:00:17]} 11. b5 {[%emt 0:01:39]} Nd4 {[%emt 0:00:09]} 12. Nxe5 {[%emt 0:07:24]} Bf6 {[%emt 0:06:18]} 13. f4 {[%emt 0:03:38]} Bxe5 {[%emt 0:20:59]} 14. fxe5 {[%emt 0:00:09]} Rxe5 {[%emt 0:00:01]} 15. Bb2 {[%emt 0:15:29]} Bg4 {[%emt 0:15:13]} 16. Rf2 {[%emt 0:00:32]} Qd7 {[%emt 0:11:12]} 17. Qf1 {[%emt 0:04:52]} Rae8 {[%emt 0:03:05]} 18. e4 {[%emt 0:08:51]} Nxb5 {[%emt 0:04:11]} 19. Nd5 {[%emt 0:17:52]} Nxd5 {[%emt 0:02:18]} 20. Bxe5 {[%emt 0:00:45]} Ne3 {[%emt 0:00:38]} 21. Qc1 {[%emt 0:00:41]} Nd1 {[%emt 0:11:19]} 22. Bxg7 {[%emt 0:13:19]} Kxg7 {[%emt 0:00:01]} 23. Qg5+ {[%emt 0:00:25]} Kh8 {[%emt 0:00:07]} 24. Qf6+ {[%emt 0:00:24]} Kg8 {[%emt 0:00:01]} 25. Rf4 {[%emt 0:01:06]} h5 {[%emt 0:04:02]} 26. Qg5+ {[%emt 0:05:37]} Kh7 {[%emt 0:00:16]} 27. Rxd1 {[%emt 0:02:27]} Rg8 {[%emt 0:00:41]} 28. Rxg4 {[%emt 0:04:43]} Qxg4 {[%emt 0:04:02]} 29. Qxg4 {[%emt 0:00:26]} hxg4 {[%emt 0:00:01]} 30. Rb1 {[%emt 0:00:10]} Rg5 {[%emt 0:01:53]} 31. a4 {[%emt 0:00:30]} Nd4 {[%emt 0:00:15]} 32. Rxb7 {[%emt 0:00:48]} Rc5 {[%emt 0:00:01]} 33. Rb2 {[%emt 0:01:45]} Rc3 {[%emt 0:00:43]} 34. Bf1 {[%emt 0:00:32]} Ra3 {[%emt 0:00:15]} 35. Kf2 {[%emt 0:00:11]} Rxa4 {[%emt 0:00:52]} 36. Be2 {[%emt 0:00:35]} Ra1 {[%emt 0:02:43]} 37. Bxg4 {[%emt 0:01:30]} a4 {[%emt 0:00:02]} 38. Bh5 {[%emt 0:00:54]} a3 {[%emt 0:00:12]} 39. Rb7 {[%emt 0:00:16]} a2 {[%emt 0:00:19]} 40. Ra7 {[%emt 0:00:05]} Nb5 {[%emt 0:00:29]} 41. Ra5 {[%emt 0:31:08]} Rh1 {[%emt 0:30:34]} 42. Bxf7 {[%emt 0:00:33]} a1=Q {[%emt 0:00:27]} 43. Rxa1 {[%emt 0:00:06]} Rxa1 {[%emt 0:00:05]} 44. h4 {[%emt 0:00:00]} Kg7 {[%emt 0:00:00]} 45. Bc4 {[%emt 0:00:00]} Nd4 {[%emt 0:00:00]} 46. Ke3 {[%emt 0:00:00]} c5 {[%emt 0:00:00]} 47. Kf4 {[%emt 0:00:00]} Rf1+ {[%emt 0:00:00]} 48. Ke5 {[%emt 0:00:00]} Rg1 {[%emt 0:00:00]} 49. Kf4 {[%emt 0:00:00]} Nc6 {[%emt 0:00:00]} 50. h5 {[%emt 0:04:42]} 0-1

[Event "FIDE World Senior-50 CC 2023"]
[Site "Terrasini"]
[Date "2023.11.01"]
[Round "7.5"]
[White "Lima, Darcy"]
[Black "Bischoff, Klaus"]
[Result "1/2-1/2"]
[ECO "E07"]
[WhiteElo "2416"]
[BlackElo "2473"]
[Annotator "ChessBase"]
[PlyCount "182"]
[EventDate "2023.10.22"]
[EventType "swiss"]
[EventCountry "ITA"]
[SourceTitle "playchess.com"]
[Source "ChessBase"]
[SourceQuality "1"]
[TimeControl "40/5400+30:1800+30"]

1. c4 {[%emt 0:00:05]} e6 {[%emt 0:01:03]} 2. g3 {[%emt 0:00:26]} d5 {[%emt 0:00:31]} 3. Nf3 {[%emt 0:00:23]} Nf6 {[%emt 0:01:25]} 4. Bg2 {[%emt 0:00:08]} Be7 {[%emt 0:01:00]} 5. O-O {[%emt 0:00:19]} O-O {[%emt 0:01:17]} 6. d4 {[%emt 0:00:40]} c6 {[%emt 0:00:42]} 7. Nc3 {[%emt 0:00:14]} Nbd7 {[%emt 0:01:29]} 8. Qd3 {[%emt 0:00:12]} b6 {[%emt 0:04:31]} 9. e4 {[%emt 0:00:36]} Ba6 {[%emt 0:04:06]} 10. b3 {[%emt 0:00:06]} Rc8 {[%emt 0:03:56]} 11. e5 {[%emt 0:06:07]} Ne8 {[%emt 0:00:34]} 12. a4 {[%emt 0:03:17]} Nc7 {[%emt 0:02:42]} 13. Re1 {[%emt 0:08:47]} c5 {[%emt 0:13:03]} 14. Nb5 {[%emt 0:01:11]} Bb7 {[%emt 0:02:44]} 15. Nxa7 {[%emt 0:09:46]} Ra8 {[%emt 0:01:05]} 16. Nb5 {[%emt 0:00:09]} dxc4 {[%emt 0:01:19]} 17. bxc4 {[%emt 0:00:06]} Nxb5 {[%emt 0:00:15]} 18. cxb5 {[%emt 0:00:05]} Ra7 {[%emt 0:00:39]} 19. Bd2 {[%emt 0:17:37]} h6 {[%emt 0:09:58]} 20. dxc5 {[%emt 0:07:23]} Nxc5 {[%emt 0:00:49]} 21. Qxd8 {[%emt 0:00:34]} Rxd8 {[%emt 0:00:07]} 22. Bb4 {[%emt 0:00:02]} Rd3 {[%emt 0:04:43]} 23. Nd2 {[%emt 0:08:42]} Bxg2 {[%emt 0:02:49]} 24. Kxg2 {[%emt 0:00:22]} Nb3 {[%emt 0:12:25]} 25. Nxb3 {[%emt 0:02:59]} Bxb4 {[%emt 0:00:07]} 26. Re3 {[%emt 0:00:49]} Rxe3 {[%emt 0:01:29]} 27. fxe3 {[%emt 0:00:01]} Bc3 {[%emt 0:00:10]} 28. Ra2 {[%emt 0:02:05]} Bxe5 {[%emt 0:00:44]} 29. a5 {[%emt 0:01:44]} bxa5 {[%emt 0:00:45]} 30. Rxa5 {[%emt 0:00:04]} Rc7 {[%emt 0:17:16]} 31. b6 {[%emt 0:00:27]} Rc2+ {[%emt 0:02:44]} 32. Kf3 {[%emt 0:01:35]} Rb2 {[%emt 0:00:38]} 33. Nc5 {[%emt 0:02:24]} Bd6 {[%emt 0:00:38]} 34. Ra8+ {[%emt 0:06:53]} Kh7 {[%emt 0:00:09]} 35. b7 {[%emt 0:00:11]} Bxc5 {[%emt 0:02:22]} 36. b8=Q {[%emt 0:00:09]} Rxb8 {[%emt 0:00:03]} 37. Rxb8 {[%emt 0:00:07]} g6 {[%emt 0:00:38]} 38. g4 {[%emt 0:04:37]} Kg7 {[%emt 0:00:24]} 39. h4 {[%emt 0:01:12]} h5 {[%emt 0:02:54]} 40. g5 {[%emt 0:01:30]} Bd6 {[%emt 0:00:16]} 41. Rb7 {[%emt 0:30:09]} Be5 {[%emt 0:30:21]} 42. Rb5 {[%emt 0:00:53]} Bc3 {[%emt 0:01:14]} 43. Rc5 {[%emt 0:00:15]} Be1 {[%emt 0:01:15]} 44. Rc4 {[%emt 0:00:04]} Kf8 {[%emt 0:00:37]} 45. Ra4 {[%emt 0:01:58]} Ke7 {[%emt 0:00:42]} 46. Ke2 {[%emt 0:00:18]} Bg3 {[%emt 0:00:17]} 47. Kf3 {[%emt 0:00:12]} Be1 {[%emt 0:00:06]} 48. Ke2 {[%emt 0:00:12]} Bg3 {[%emt 0:00:05]} 49. Kd3 {[%emt 0:00:05]} Bf2 {[%emt 0:01:13]} 50. Re4 {[%emt 0:00:08]} Bg3 {[%emt 0:00:38]} 51. Ra4 {[%emt 0:00:20]} Bf2 {[%emt 0:00:21]} 52. Ke2 {[%emt 0:01:03]} Bg3 {[%emt 0:00:05]} 53. Kf1 {[%emt 0:00:03]} Kf8 {[%emt 0:01:06]} 54. Kg2 {[%emt 0:00:06]} Be1 {[%emt 0:00:08]} 55. Kh3 {[%emt 0:00:17]} Bf2 {[%emt 0:00:56]} 56. e4 {[%emt 0:01:44]} Be1 {[%emt 0:01:48]} 57. e5 {[%emt 0:00:47]} Ke7 {[%emt 0:01:13]} 58. Re4 {[%emt 0:03:15]} Bc3 {[%emt 0:01:02]} 59. Kg2 {[%emt 0:00:05]} Ba5 {[%emt 0:00:37]} 60. Kf3 {[%emt 0:00:26]} Bb6 {[%emt 0:00:41]} 61. Re2 {[%emt 0:00:15]} Bc5 {[%emt 0:00:00]} 62. Ke4 {[%emt 0:00:00]} Ke8 {[%emt 0:00:00]} 63. Kd3 {[%emt 0:00:00]} Bb4 {[%emt 0:00:00]} 64. Kc4 {[%emt 0:00:00]} Ba5 {[%emt 0:00:00]} 65. Kb5 {[%emt 0:00:00]} Bc3 {[%emt 0:00:00]} 66. Kc6 {[%emt 0:00:00]} Ke7 {[%emt 0:00:00]} 67. Re4 {[%emt 0:00:00]} Bb2 {[%emt 0:00:00]} 68. Kc5 {[%emt 0:00:00]} Ba3+ {[%emt 0:00:00]} 69. Kb5 {[%emt 0:00:00]} Bb2 {[%emt 0:00:00]} 70. Kb4 {[%emt 0:00:00]} Ba1 {[%emt 0:00:00]} 71. Kb3 {[%emt 0:00:00]} Ke8 {[%emt 0:00:00]} 72. Kc4 {[%emt 0:00:00]} Ke7 {[%emt 0:00:00]} 73. Re2 {[%emt 0:00:00]} Ke8 {[%emt 0:00:00]} 74. Kd3 {[%emt 0:00:00]} Ke7 {[%emt 0:00:00]} 75. Re3 {[%emt 0:00:00]} Ke8 {[%emt 0:00:00]} 76. Re1 {[%emt 0:00:00]} Bb2 {[%emt 0:00:00]} 77. Ke4 {[%emt 0:00:00]} Ke7 {[%emt 0:00:00]} 78. Re3 {[%emt 0:00:00]} Ke8 {[%emt 0:00:00]} 79. Rb3 {[%emt 0:00:00]} Ba1 {[%emt 0:00:00]} 80. Re3 {[%emt 0:00:02]} Ke7 {[%emt 0:00:00]} 81. Re2 {[%emt 0:00:19]} Ke8 {[%emt 0:00:00]} 82. Rc2 {[%emt 0:00:05]} Kd7 {[%emt 0:00:00]} 83. Rc5 {[%emt 0:00:14]} Bb2 {[%emt 0:00:00]} 84. Kd3 {[%emt 0:00:12]} Ke7 {[%emt 0:00:00]} 85. Rb5 {[%emt 0:01:26]} Ba1 {[%emt 0:00:00]} 86. Ke4 {[%emt 0:05:52]} Bc3 {[%emt 0:00:00]} 87. Rb1 {[%emt 0:00:05]} Ke8 {[%emt 0:00:00]} 88. Rc1 {[%emt 0:00:17]} Bb2 {[%emt 0:00:00]} 89. Rc7 {[%emt 0:04:06]} Ba1 {[%emt 0:00:00]} 90. Kf4 {[%emt 0:02:22]} Bd4 {[%emt 0:00:00]} 91. Rc4 {[%emt 0:00:04]} Bb2 {[%emt 0:00:00]} 1/2-1/2

[Event "FIDE World Senior-50 CC 2023"]
[Site "Terrasini"]
[Date "2023.11.01"]
[Round "7.6"]
[White "Nadanian, Ashot"]
[Black "Dlugy, Maxim"]
[Result "0-1"]
[ECO "B45"]
[WhiteElo "2279"]
[BlackElo "2520"]
[Annotator "ChessBase"]
[PlyCount "62"]
[EventDate "2023.10.22"]
[EventType "swiss"]
[EventCountry "ITA"]
[SourceTitle "playchess.com"]
[Source "ChessBase"]
[SourceQuality "1"]
[TimeControl "40/5400+30:1800+30"]

1. e4 {[%emt 0:00:10]} c5 {[%emt 0:00:23]} 2. Nf3 {[%emt 0:00:40]} e6 {[%emt 0:00:09]} 3. d4 {[%emt 0:00:09]} cxd4 {[%emt 0:00:04]} 4. Nxd4 {[%emt 0:00:21]} Nf6 {[%emt 0:00:07]} 5. Nc3 {[%emt 0:00:07]} Nc6 {[%emt 0:00:03]} 6. Nxc6 {[%emt 0:00:37]} bxc6 {[%emt 0:00:04]} 7. e5 {[%emt 0:00:27]} Nd5 {[%emt 0:00:06]} 8. Ne4 {[%emt 0:00:19]} Qc7 {[%emt 0:00:04]} 9. f4 {[%emt 0:00:34]} Qb6 {[%emt 0:00:04]} 10. c4 {[%emt 0:00:58]} Bb4+ {[%emt 0:00:03]} 11. Ke2 {[%emt 0:00:25]} f5 {[%emt 0:00:04]} 12. exf6 {[%emt 0:01:02]} Nxf6 {[%emt 0:00:05]} 13. Nd6+ {[%emt 0:01:01]} Bxd6 {[%emt 0:06:39]} 14. Qxd6 {[%emt 0:00:08]} Ng4 {[%emt 0:14:48]} 15. Kf3 {[%emt 0:16:18]} Nh6 {[%emt 0:05:31]} 16. Bd3 {[%emt 0:15:37]} Nf7 {[%emt 0:05:01]} 17. Qa3 {[%emt 0:00:29]} c5 {[%emt 0:01:08]} 18. Qc3 {[%emt 0:07:32]} Bb7+ {[%emt 0:04:05]} 19. Kg3 {[%emt 0:00:12]} g5 {[%emt 0:17:54]} 20. fxg5 {[%emt 0:11:21]} Qd6+ {[%emt 0:06:18]} 21. Kh3 {[%emt 0:08:10]} Rg8 {[%emt 0:05:48]} 22. Rf1 {[%emt 0:02:42]} e5 {[%emt 0:08:42]} 23. Rf5 {[%emt 0:11:47]} h6 {[%emt 0:00:18]} 24. g6 {[%emt 0:08:45]} Rxg6 {[%emt 0:04:05]} 25. g4 {[%emt 0:01:18]} Qe6 {[%emt 0:05:32]} 26. Be3 {[%emt 0:05:44]} h5 {[%emt 0:01:40]} 27. Rg1 {[%emt 0:04:15]} hxg4+ {[%emt 0:01:31]} 28. Rxg4 {[%emt 0:01:59]} O-O-O {[%emt 0:04:12]} 29. Qa5 {[%emt 0:01:11]} d6 {[%emt 0:01:30]} 30. Rxg6 {[%emt 0:00:37]} Qxg6 {[%emt 0:00:24]} 31. Bg5 {[%emt 0:00:34]} Nxg5+ {[%emt 0:00:31]} 0-1

[Event "FIDE World Senior-50 CC 2023"]
[Site "Terrasini"]
[Date "2023.11.01"]
[Round "7.7"]
[White "Degraeve, Jean-Marc"]
[Black "Plotkin, Victor"]
[Result "1/2-1/2"]
[ECO "C43"]
[WhiteElo "2479"]
[BlackElo "2229"]
[Annotator "ChessBase"]
[PlyCount "113"]
[EventDate "2023.10.22"]
[EventType "swiss"]
[EventCountry "ITA"]
[SourceTitle "playchess.com"]
[Source "ChessBase"]
[SourceQuality "1"]
[TimeControl "40/5400+30:1800+30"]

1. e4 {[%emt 0:05:57]} e5 {[%emt 0:00:08]} 2. Nf3 {[%emt 0:00:20]} Nf6 {[%emt 0:00:07]} 3. d4 {[%emt 0:01:57]} Nxe4 {[%emt 0:00:10]} 4. Bd3 {[%emt 0:00:24]} Nc6 {[%emt 0:00:13]} 5. Nxe5 {[%emt 0:04:09]} Nxe5 {[%emt 0:00:36]} 6. Bxe4 {[%emt 0:01:05]} Ng6 {[%emt 0:05:02]} 7. c4 {[%emt 0:00:50]} Be7 {[%emt 0:08:05]} 8. O-O {[%emt 0:00:45]} d6 {[%emt 0:01:46]} 9. Nc3 {[%emt 0:00:26]} c6 {[%emt 0:00:56]} 10. f4 {[%emt 0:27:26]} f5 {[%emt 0:02:41]} 11. Bf3 {[%emt 0:00:30]} O-O {[%emt 0:00:39]} 12. Be3 {[%emt 0:01:03]} Bf6 {[%emt 0:05:02]} 13. Qd2 {[%emt 0:02:41]} Qc7 {[%emt 0:02:42]} 14. g3 {[%emt 0:02:50]} Bd7 {[%emt 0:03:03]} 15. Rab1 {[%emt 0:00:06]} Rfe8 {[%emt 0:01:40]} 16. b4 {[%emt 0:01:30]} Be6 {[%emt 0:05:46]} 17. Qd3 {[%emt 0:10:39]} Ne7 {[%emt 0:07:47]} 18. Rfc1 {[%emt 0:01:05]} Qd7 {[%emt 0:04:54]} 19. d5 {[%emt 0:01:23]} Bf7 {[%emt 0:02:54]} 20. dxc6 {[%emt 0:02:24]} bxc6 {[%emt 0:01:32]} 21. Bd4 {[%emt 0:01:23]} Bxd4+ {[%emt 0:01:09]} 22. Qxd4 {[%emt 0:00:02]} Rad8 {[%emt 0:01:32]} 23. Rd1 {[%emt 0:01:19]} Qc7 {[%emt 0:01:15]} 24. c5 {[%emt 0:01:44]} dxc5 {[%emt 0:01:31]} 25. Qxc5 {[%emt 0:00:06]} Qb6 {[%emt 0:01:03]} 26. Qxb6 {[%emt 0:07:35]} axb6 {[%emt 0:00:23]} 27. Rxd8 {[%emt 0:00:30]} Rxd8 {[%emt 0:00:09]} 28. Rd1 {[%emt 0:00:01]} Rxd1+ {[%emt 0:04:08]} 29. Bxd1 {[%emt 0:03:23]} Kf8 {[%emt 0:01:04]} 30. a3 {[%emt 0:03:54]} Ke8 {[%emt 0:01:18]} 31. Na4 {[%emt 0:05:33]} Nc8 {[%emt 0:01:03]} 32. Be2 {[%emt 0:00:13]} Kd7 {[%emt 0:04:22]} 33. Ba6 {[%emt 0:00:42]} Bb3 {[%emt 0:00:56]} 34. Bxc8+ {[%emt 0:07:57]} Kxc8 {[%emt 0:00:10]} 35. Nc3 {[%emt 0:00:03]} Kc7 {[%emt 0:01:03]} 36. Kf2 {[%emt 0:00:20]} Kd6 {[%emt 0:00:33]} 37. Ke3 {[%emt 0:00:41]} c5 {[%emt 0:02:27]} 38. Kd3 {[%emt 0:00:06]} Kc6 {[%emt 0:01:04]} 39. Nb1 {[%emt 0:02:26]} Kd5 {[%emt 0:03:34]} 40. Nc3+ {[%emt 0:00:05]} Kc6 {[%emt 0:00:21]} 41. Ke3 {[%emt 0:34:54]} Kd6 {[%emt 0:31:17]} 42. Kd2 {[%emt 0:00:00]} Kc6 {[%emt 0:00:00]} 43. Kc1 {[%emt 0:00:00]} Kd6 {[%emt 0:00:00]} 44. Kb2 {[%emt 0:00:00]} Be6 {[%emt 0:00:00]} 45. Na4 {[%emt 0:00:00]} Kc6 {[%emt 0:00:00]} 46. Kc3 {[%emt 0:00:00]} h6 {[%emt 0:00:00]} 47. h4 {[%emt 0:00:00]} Kb5 {[%emt 0:00:00]} 48. Nb2 {[%emt 0:00:00]} Kc6 {[%emt 0:00:00]} 49. Nd1 {[%emt 0:00:00]} Kd5 {[%emt 0:00:00]} 50. Kd3 {[%emt 0:00:00]} Kc6 {[%emt 0:00:00]} 51. Ne3 {[%emt 0:00:00]} Kb5 {[%emt 0:00:00]} 52. Kc3 {[%emt 0:00:00]} Kc6 {[%emt 0:00:00]} 53. Nd1 {[%emt 0:00:20]} Kd5 {[%emt 0:00:00]} 54. Kd3 {[%emt 0:02:44]} Kc6 {[%emt 0:00:00]} 55. Nc3 {[%emt 0:00:29]} Bb3 {[%emt 0:00:00]} 56. Ke3 {[%emt 0:02:05]} Kd6 {[%emt 0:00:00]} 57. Kd3 {[%emt 0:01:37]} 1/2-1/2

[Event "FIDE World Senior-50 CC 2023"]
[Site "Terrasini"]
[Date "2023.11.01"]
[Round "7.8"]
[White "Holzke, Frank"]
[Black "Dieu, Bruno"]
[Result "1-0"]
[ECO "C09"]
[WhiteElo "2473"]
[BlackElo "2221"]
[Annotator "ChessBase"]
[PlyCount "105"]
[EventDate "2023.10.22"]
[EventType "swiss"]
[EventCountry "ITA"]
[SourceTitle "playchess.com"]
[Source "ChessBase"]
[SourceQuality "1"]
[TimeControl "40/5400+30:1800+30"]

1. e4 {[%emt 0:00:10]} e6 {[%emt 0:00:04]} 2. d4 {[%emt 0:00:13]} d5 {[%emt 0:00:06]} 3. Nd2 {[%emt 0:00:17]} c5 {[%emt 0:00:28]} 4. Ngf3 {[%emt 0:00:19]} Nc6 {[%emt 0:00:05]} 5. exd5 {[%emt 0:00:29]} exd5 {[%emt 0:00:07]} 6. Bb5 {[%emt 0:00:14]} Qe7+ {[%emt 0:00:06]} 7. Be2 {[%emt 0:00:44]} Qc7 {[%emt 0:00:04]} 8. O-O {[%emt 0:00:20]} Nf6 {[%emt 0:00:17]} 9. Re1 {[%emt 0:00:33]} Be6 {[%emt 0:00:44]} 10. Bd3 {[%emt 0:00:28]} Bd6 {[%emt 0:02:58]} 11. dxc5 {[%emt 0:01:40]} Bxc5 {[%emt 0:01:20]} 12. Nb3 {[%emt 0:00:27]} Bb6 {[%emt 0:06:44]} 13. Bg5 {[%emt 0:05:51]} O-O-O {[%emt 0:08:48]} 14. c3 {[%emt 0:08:01]} Rde8 {[%emt 0:11:33]} 15. Bxf6 {[%emt 0:05:30]} gxf6 {[%emt 0:00:28]} 16. Nfd4 {[%emt 0:00:27]} Qf4 {[%emt 0:03:59]} 17. g3 {[%emt 0:04:35]} Rhg8 {[%emt 0:05:04]} 18. Bxh7 {[%emt 0:06:09]} Rg7 {[%emt 0:03:23]} 19. Bf5 {[%emt 0:02:59]} Ne5 {[%emt 0:01:45]} 20. Qh5 {[%emt 0:17:18]} Bxf5 {[%emt 0:14:14]} 21. Qxf5+ {[%emt 0:01:24]} Qxf5 {[%emt 0:38:43]} 22. Nxf5 {[%emt 0:00:12]} Nf3+ {[%emt 0:00:00]} 23. Kf1 {[%emt 0:02:34]} Rxe1+ {[%emt 0:00:00]} 24. Rxe1 {[%emt 0:00:09]} Rg5 {[%emt 0:00:00]} 25. Ne7+ {[%emt 0:04:58]} Kd7 {[%emt 0:00:00]} 26. h4 {[%emt 0:02:33]} Rh5 {[%emt 0:00:00]} 27. Re2 {[%emt 0:09:29]} Bd8 {[%emt 0:00:00]} 28. Nc5+ {[%emt 0:01:23]} Kc7 {[%emt 0:00:00]} 29. Nd3 {[%emt 0:01:26]} Kd6 {[%emt 0:00:00]} 30. Nf4 {[%emt 0:02:26]} Re5 {[%emt 0:00:00]} 31. Nexd5 {[%emt 0:01:06]} Nh2+ {[%emt 0:00:00]} 32. Kg2 {[%emt 0:00:46]} Rxe2 {[%emt 0:00:00]} 33. Nxe2 {[%emt 0:00:09]} Kxd5 {[%emt 0:00:00]} 34. Kxh2 {[%emt 0:00:17]} Ke4 {[%emt 0:00:00]} 35. Nd4 {[%emt 0:01:06]} f5 {[%emt 0:00:00]} 36. f3+ {[%emt 0:01:35]} Ke3 {[%emt 0:00:00]} 37. Kg2 {[%emt 0:01:37]} f4 {[%emt 0:00:00]} 38. g4 {[%emt 0:00:20]} Bxh4 {[%emt 0:00:00]} 39. Nf5+ {[%emt 0:00:37]} Kd3 {[%emt 0:00:00]} 40. Nxh4 {[%emt 0:00:08]} Kc2 {[%emt 0:00:00]} 41. Nf5 {[%emt 0:33:38]} Kxb2 {[%emt 0:17:16]} 42. Nd6 {[%emt 0:01:10]} f6 {[%emt 0:02:17]} 43. Nxb7 {[%emt 0:02:42]} Kxc3 {[%emt 0:00:15]} 44. Nd6 {[%emt 0:00:25]} a5 {[%emt 0:00:25]} 45. Ne4+ {[%emt 0:01:26]} Kb2 {[%emt 0:00:04]} 46. Nxf6 {[%emt 0:00:18]} Kxa2 {[%emt 0:00:03]} 47. g5 {[%emt 0:00:10]} a4 {[%emt 0:00:03]} 48. g6 {[%emt 0:00:08]} a3 {[%emt 0:00:01]} 49. g7 {[%emt 0:00:08]} Kb1 {[%emt 0:00:04]} 50. g8=Q {[%emt 0:00:08]} a2 {[%emt 0:00:01]} 51. Qb3+ {[%emt 0:00:30]} Ka1 {[%emt 0:00:04]} 52. Qc3+ {[%emt 0:00:27]} Kb1 {[%emt 0:00:03]} 53. Ne4 {[%emt 0:00:13]} 1-0